fUST/lending_fUST_20250420
["ID","MTS","AMOUNT","RATE_DAILY","PERIOD"]
[358426680,1745135439594,-505.49541606,0.00019178,2]
[358426681,1745135439604,-500.0,0.00019178,2]
[358426682,1745135439614,-500.0,0.00019178,2]
[358426683,1745135439623,-556.38,0.00019178,2]
[358426684,1745135439633,-500.0,0.00019178,2]
[358426685,1745135439642,-879.02,0.00019178,2]
[358426686,1745135439652,-510.6598412,0.00019178,2]
[358426687,1745135439661,-500.0,0.00019178,2]
[358426688,1745135439671,-410.18863858,0.00019178,2]
[358426689,1745135439681,-505.99966057,0.00019178,2]
[358426690,1745135439692,-500.0,0.00019178,2]
[358426691,1745135439702,-500.0,0.00019178,2]
[358426692,1745135439712,-500.0,0.00019178,2]
[358426693,1745135439722,-507.85791417,0.00019178,2]
[358426694,1745135439731,-500.0,0.00019178,2]
[358426695,1745135439741,-678.53,0.00019178,2]
[358426696,1745135439751,-518.47225159,0.00019178,2]
[358426697,1745135439761,-500.0,0.00019178,2]
[358426698,1745135439771,-517.6729653,0.00019178,2]
[358426699,1745135439781,-500.0,0.00019178,2]
[358426700,1745135439791,-500.0,0.00019178,2]
[358426701,1745135439800,-610.83,0.00019178,2]
[358426702,1745135439809,-500.0,0.00019178,2]
[358426703,1745135439819,-526.99,0.00019178,2]
[358426704,1745135439829,-519.32897013,0.00019178,2]
[358426705,1745135439838,-511.58205129,0.00019178,2]
[358426706,1745135439848,-500.0,0.00019178,2]
[358426707,1745135439858,-507.90787273,0.00019178,2]
[358426708,1745135439868,-500.0,0.00019178,2]
[358426709,1745135439878,-151.0,0.00019178,2]
[358426710,1745135439888,-500.0,0.00019178,2]
[358426711,1745135439898,-514.50848057,0.00019178,2]
[358426712,1745135439908,-500.0,0.00019178,2]
[358426713,1745135439917,-521.97,0.00019178,2]
[358426714,1745135439927,-151.96384127,0.00019178,2]
[358426715,1745135439937,-151.0,0.00019178,2]
[358426716,1745135439947,-151.0,0.00019178,2]
[358426717,1745135439957,-500.0,0.00019178,2]
[358426718,1745135439967,-500.0,0.00019178,2]
[358426719,1745135439976,-500.0,0.00019178,2]
[358426720,1745135439986,-151.0,0.00019178,2]
[358426721,1745135439996,-500.0,0.00019178,2]
[358426722,1745135440012,-151.99972324,0.00019178,2]
[358426723,1745135440027,-504.03440868,0.00019178,2]
[358426724,1745135440036,-151.0,0.00019178,2]
[358426725,1745135440046,-510.6799974,0.00019178,2]
[358426726,1745135440056,-151.0,0.00019178,2]
[358426727,1745135440067,-500.0,0.00019178,2]
[358426728,1745135440077,-550.92,0.00019178,2]
[358426729,1745135440087,-513.53653476,0.00019178,2]
[358426730,1745135440097,-512.37416612,0.00019178,2]
[358426731,1745135440107,-151.0,0.00019178,2]
[358426732,1745135440117,-523.98604402,0.00019178,2]
[358426733,1745135440127,-500.0,0.00019178,2]
[358426734,1745135440136,-521.81767951,0.00019178,2]
[358426735,1745135440147,-500.0,0.00019178,2]
[358426736,1745135440156,-515.3545462,0.00019178,2]
[358426737,1745135440167,-682.92,0.00019178,2]
[358426738,1745135440176,-506.38988214,0.00019178,2]
[358426739,1745135440186,-500.0,0.00019178,2]
[358426740,1745135440196,-506.50252457,0.00019178,2]
[358426741,1745135440205,-500.0,0.00019178,2]
[358426742,1745135440215,-1017.41,0.00019178,2]
[358426743,1745135440226,-500.0,0.00019178,2]
[358426744,1745135440235,-656.62,0.00019178,2]
[358426745,1745135440245,-500.0,0.00019178,2]
[358426746,1745135440254,-500.0,0.00019178,2]
[358426747,1745135440264,-587.34,0.00019178,2]
[358426748,1745135440274,-513.44134594,0.00019178,2]
[358426749,1745135440284,-1789.8,0.00019178,2]
[358426750,1745135440293,-500.0,0.00019178,2]
[358426751,1745135440303,-428.74871567,0.00019178,2]
[358426752,1745135440312,-506.0403614,0.00019178,2]
[358426753,1745135440323,-518.47,0.00019178,2]
[358426754,1745135440332,-500.0,0.00019178,2]
[358426755,1745135440342,-500.0,0.00019178,2]
[358426756,1745135440352,-512.11714371,0.00019178,2]
[358426757,1745135440361,-516.95445051,0.00019178,2]
[358426758,1745135440371,-520.31890036,0.00019178,2]
[358426759,1745135440380,-2115.38,0.00019178,2]
[358426760,1745135440390,-500.0,0.00019178,2]
[358426761,1745135440400,-513.21,0.00019178,2]
[358426762,1745135440409,-515.93238465,0.00019178,2]
[358426763,1745135440419,-513.38352981,0.00019178,2]
[358426764,1745135440428,-658.82,0.00019178,2]
[358426765,1745135440438,-514.75536159,0.00019178,2]
[358426766,1745135440448,-500.0,0.00019178,2]
[358426767,1745135440463,-500.0,0.00019178,2]
[358426768,1745135440473,-500.0,0.00019178,2]
[358426769,1745135440483,-500.0,0.00019178,2]
[358426770,1745135440494,-685.35,0.00019178,2]
[358426771,1745135440504,-510.84435488,0.00019178,2]
[358426772,1745135440514,-500.0,0.00019178,2]
[358426773,1745135440524,-1631.65,0.00019178,2]
[358426774,1745135440534,-500.0,0.00019178,2]
[358426775,1745135440544,-500.0,0.00019178,2]
[358426776,1745135440553,-464.06480616,0.00019178,2]
[358426777,1745135440563,-572.17,0.00019178,2]
[358426778,1745135440573,-505.44133215,0.00019178,2]
[358426779,1745135440582,-500.0,0.00019178,2]
[358426781,1745135440592,-513.88186638,0.00019178,2]
[358426783,1745135440602,-510.98568459,0.00019178,2]
[358426785,1745135440612,-505.3220146,0.00019178,2]
[358426786,1745135440622,-151.0,0.00019178,2]
[358426787,1745135440632,-151.0,0.00019178,2]
[358426788,1745135440642,-151.0,0.00019178,2]
[358426789,1745135440652,-510.90026496,0.00019178,2]
[358426790,1745135440662,-500.0,0.00019178,2]
[358426791,1745135440671,-694.63,0.00019178,2]
[358426792,1745135440682,-500.0,0.00019178,2]
[358426793,1745135440692,-154.88829984,0.00019178,2]
[358426794,1745135440701,-500.0,0.00019178,2]
[358426795,1745135440711,-151.0,0.00019178,2]
[358426796,1745135440721,-511.32462147,0.00019178,2]
[358426798,1745135440730,-500.0,0.00019178,2]
[358426799,1745135440740,-526.1639601,0.00019178,2]
[358426800,1745135440750,-6079.68,0.00019178,2]
[358426801,1745135440760,-153.13690097,0.00019178,2]
[358426802,1745135440769,-505.94375769,0.00019178,2]
[358426803,1745135440778,-199.87004471,0.00019178,2]
[358426804,1745135440788,-500.0,0.00019178,2]
[358426805,1745135440797,-201.86885454,0.00019178,2]
[358426806,1745135440807,-500.0,0.00019178,2]
[358426807,1745135440816,-153.20497374,0.00019178,2]
[358426808,1745135440826,-505.86602557,0.00019178,2]
[358426809,1745135440835,-301.44229909,0.00019178,2]
[358426810,1745135440845,-500.0,0.00019178,2]
[358426811,1745135440854,-279.86990672,0.00019178,2]
[358426812,1745135440864,-2193.23,0.00019178,2]
[358426813,1745135440873,-502.81229629,0.00019178,2]
[358426814,1745135440883,-3762.72,0.00019178,2]
[358426815,1745135440892,-500.0,0.00019178,2]
[358426816,1745135440902,-500.0,0.00019178,2]
[358426817,1745135440911,-500.0,0.00019178,2]
[358426818,1745135440921,-353.78852256,0.00019178,2]
[358426819,1745135440931,-850.64,0.00019178,2]
[358426820,1745135440941,-503.04723954,0.00019178,2]
[358426821,1745135440950,-916.52,0.00019178,2]
[358426822,1745135440960,-506.96013577,0.00019178,2]
[358426823,1745135440969,-500.62227559,0.00019178,2]
[358426824,1745135440979,-191.99275255,0.00019178,2]
[358426825,1745135441196,-2673.73,0.00019178,2]
[358426826,1745135441207,-560.12,0.00019178,2]
[358426827,1745135441216,-505.41429201,0.00019178,2]
[358426828,1745135441226,-541.27,0.00019178,2]
[358426829,1745135441236,-500.0,0.00019178,2]
[358426830,1745135441246,-545.07,0.00019178,2]
[358426831,1745135441256,-500.0,0.00019178,2]
[358426832,1745135441265,-11864.41,0.00019178,2]
[358426833,1745135441275,-500.0,0.00019178,2]
[358426834,1745135441285,-727.81,0.00019178,2]
[358426835,1745135441294,-519.05085048,0.00019178,2]
[358426836,1745135441303,-500.0,0.00019178,2]
[358426837,1745135441313,-500.0,0.00019178,2]
[358426838,1745135441323,-500.0,0.00019178,2]
[358426839,1745135441332,-506.69458991,0.00019178,2]
[358426840,1745135441344,-504.09963994,0.00019178,2]
[358426841,1745135441354,-500.0,0.00019178,2]
[358426842,1745135441365,-500.0,0.00019178,2]
[358426843,1745135441374,-504.19805055,0.00019178,2]
[358426844,1745135441384,-4114.12,0.00019178,2]
[358426845,1745135441394,-502.01569707,0.00019178,2]
[358426846,1745135441404,-487.19780915,0.00019178,2]
[358426847,1745135441414,-500.0,0.00019178,2]
[358426848,1745135441423,-1000.0,0.00019178,2]
[358426849,1745135441433,-300.0,0.00019178,2]
[358426850,1745135441442,-151.0,0.00019315,2]
[358426851,1745135441452,-151.0,0.00019315,2]
[358426852,1745135441464,-151.0,0.00019315,2]
[358426853,1745135441474,-151.0,0.00019315,2]
[358426854,1745135441483,-500.0,0.00019315,2]
[358426855,1745135441493,-1500.0,0.00019315,2]
[358426856,1745135441504,-799.946343,0.00019354,2]
[358426857,1745135441513,-738.2784474,0.000194,2]
[358426858,1745135441523,-157.1038495,0.00019427,2]
[358426859,1745135441533,-1470.09852278,0.00019451,2]
[358426860,1745135441543,-177.38996013,0.00019451,2]
[358426861,1745135441551,-151.0,0.00019452,2]
[358426862,1745135441561,-198.0,0.00019452,2]
[358426863,1745135441570,-205.37473424,0.00019452,2]
[358426864,1745135441580,-198.0,0.00019452,2]
[358426865,1745135441589,-500.0,0.00019452,2]
[358426866,1745135441599,-500.0,0.00019452,2]
[358426867,1745135441608,-500.0,0.00019452,2]
[358426868,1745135441618,-500.0,0.00019452,2]
[358426869,1745135441628,-532.24,0.00019452,2]
[358426870,1745135441637,-500.0,0.00019452,2]
[358426871,1745135441647,-500.0,0.00019452,2]
[358426872,1745135441656,-500.0,0.00019452,2]
[358426873,1745135441666,-500.0,0.00019452,2]
[358426874,1745135441676,-500.0,0.00019452,2]
[358426875,1745135441685,-500.0,0.00019452,2]
[358426876,1745135441695,-500.0,0.00019452,2]
[358426877,1745135441704,-658.12,0.00019452,2]
[358426878,1745135441713,-500.0,0.00019452,2]
[358426879,1745135441723,-500.0,0.00019452,2]
[358426880,1745135441732,-686.01,0.00019452,2]
[358426881,1745135441742,-500.0,0.00019452,2]
[358426882,1745135441751,-500.0,0.00019452,2]
[358426883,1745135441760,-500.0,0.00019452,2]
[358426884,1745135441769,-642.46,0.00019452,2]
[358426885,1745135441779,-500.0,0.00019452,2]
[358426886,1745135441788,-500.0,0.00019452,2]
[358426887,1745135441798,-537.01,0.00019452,2]
[358426888,1745135441807,-852.9,0.00019452,2]
[358426889,1745135441817,-500.0,0.00019452,2]
[358426890,1745135441826,-500.0,0.00019452,2]
[358426891,1745135441835,-500.0,0.00019452,2]
[358426892,1745135441846,-500.0,0.00019452,2]
[358426893,1745135441856,-500.0,0.00019452,2]
[358426894,1745135441866,-500.0,0.00019452,2]
[358426895,1745135441876,-500.0,0.00019452,2]
[358426896,1745135441886,-1157.68,0.00019452,2]
[358426897,1745135441894,-500.0,0.00019452,2]
[358426898,1745135441904,-750.52,0.00019452,2]
[358426899,1745135441913,-500.0,0.00019452,2]
[358426900,1745135441923,-500.0,0.00019452,2]
[358426901,1745135441932,-500.0,0.00019452,2]
[358426902,1745135441942,-500.0,0.00019452,2]
[358426903,1745135441951,-500.0,0.00019452,2]
[358426904,1745135441962,-500.0,0.00019452,2]
[358426906,1745135441972,-500.0,0.00019452,2]
[358426907,1745135441982,-500.0,0.00019452,2]
[358426908,1745135441992,-500.0,0.00019452,2]
[358426909,1745135442002,-500.0,0.00019452,2]
[358426910,1745135442012,-500.0,0.00019452,2]
[358426911,1745135442022,-500.0,0.00019452,2]
[358426912,1745135442031,-500.0,0.00019452,2]
[358426913,1745135442041,-500.0,0.00019452,2]
[358426914,1745135442050,-500.0,0.00019452,2]
[358426915,1745135442060,-500.0,0.00019452,2]
[358426916,1745135442070,-500.0,0.00019452,2]
[358426917,1745135442080,-500.0,0.00019452,2]
[358426918,1745135442090,-500.0,0.00019452,2]
[358426920,1745135442100,-556.38,0.00019452,2]
[358426921,1745135442111,-500.0,0.00019452,2]
[358426922,1745135442121,-879.02,0.00019452,2]
[358426923,1745135442131,-500.0,0.00019452,2]
[358426924,1745135442141,-500.0,0.00019452,2]
[358426925,1745135442151,-500.0,0.00019452,2]
[358426926,1745135442160,-500.0,0.00019452,2]
[358426927,1745135442170,-500.0,0.00019452,2]
[358426928,1745135442180,-678.53,0.00019452,2]
[358426929,1745135442191,-500.0,0.00019452,2]
[358426930,1745135442201,-500.0,0.00019452,2]
[358426931,1745135442211,-500.0,0.00019452,2]
[358426932,1745135442222,-610.83,0.00019452,2]
[358426933,1745135442232,-500.0,0.00019452,2]
[358426934,1745135442242,-526.99,0.00019452,2]
[358426935,1745135442252,-500.0,0.00019452,2]
[358426936,1745135442262,-500.0,0.00019452,2]
[358426937,1745135442272,-500.0,0.00019452,2]
[358426938,1745135442281,-500.0,0.00019452,2]
[358426939,1745135442291,-521.97,0.00019452,2]
[358426940,1745135442300,-500.0,0.00019452,2]
[358426941,1745135442308,-500.0,0.00019452,2]
[358426942,1745135442317,-500.0,0.00019452,2]
[358426943,1745135442326,-500.0,0.00019452,2]
[358426944,1745135442335,-550.92,0.00019452,2]
[358426945,1745135442345,-500.0,0.00019452,2]
[358426946,1745135442354,-416.03794537,0.00019452,2]
[358426947,1745135442363,-500.0,0.00019452,2]
[358426948,1745135442371,-682.92,0.00019452,2]
[358426949,1745135442382,-500.0,0.00019452,2]
[358426950,1745135442391,-500.0,0.00019452,2]
[358426951,1745135442401,-1017.41,0.00019452,2]
[358426952,1745135442411,-500.0,0.00019452,2]
[358426953,1745135442420,-656.62,0.00019452,2]
[358426954,1745135442430,-500.0,0.00019452,2]
[358426955,1745135442439,-500.0,0.00019452,2]
[358426956,1745135442450,-587.34,0.00019452,2]
[358426957,1745135442462,-1789.8,0.00019452,2]
[358426958,1745135442472,-518.47,0.00019452,2]
[358426959,1745135442481,-500.0,0.00019452,2]
[358426960,1745135442491,-2115.38,0.00019452,2]
[358426961,1745135442500,-500.0,0.00019452,2]
[358426962,1745135442510,-658.82,0.00019452,2]
[358426963,1745135442519,-500.0,0.00019452,2]
[358426964,1745135442528,-500.0,0.00019452,2]
[358426965,1745135442538,-500.0,0.00019452,2]
[358426966,1745135442548,-500.0,0.00019452,2]
[358426967,1745135442558,-685.35,0.00019452,2]
[358426968,1745135442568,-500.0,0.00019452,2]
[358426969,1745135442577,-1631.65,0.00019452,2]
[358426970,1745135442587,-500.0,0.00019452,2]
[358426971,1745135442596,-500.0,0.00019452,2]
[358426972,1745135442606,-572.17,0.00019452,2]
[358426973,1745135442616,-500.0,0.00019452,2]
[358426974,1745135442625,-151.0,0.00019452,2]
[358426975,1745135442635,-151.0,0.00019452,2]
[358426976,1745135442644,-500.0,0.00019452,2]
[358426977,1745135442654,-694.63,0.00019452,2]
[358426978,1745135442664,-500.0,0.00019452,2]
[358426979,1745135442673,-500.0,0.00019452,2]
[358426980,1745135442683,-6079.68,0.00019452,2]
[358426981,1745135442693,-500.0,0.00019452,2]
[358426982,1745135442702,-500.0,0.00019452,2]
[358426983,1745135442711,-500.0,0.00019452,2]
[358426984,1745135442721,-2193.23,0.00019452,2]
[358426985,1745135442730,-3762.72,0.00019452,2]
[358426986,1745135442741,-500.0,0.00019452,2]
[358426987,1745135442750,-500.0,0.00019452,2]
[358426988,1745135442760,-500.0,0.00019452,2]
[358426989,1745135442770,-850.64,0.00019452,2]
[358426990,1745135442780,-916.52,0.00019452,2]
[358426991,1745135442790,-2673.73,0.00019452,2]
[358426992,1745135442802,-560.12,0.00019452,2]
[358426993,1745135442811,-541.27,0.00019452,2]
[358426994,1745135442820,-500.0,0.00019452,2]
[358426995,1745135442830,-545.07,0.00019452,2]
[358426996,1745135442839,-500.0,0.00019452,2]
[358426997,1745135442849,-11864.41,0.00019452,2]
[358426998,1745135442859,-500.0,0.00019452,2]
[358426999,1745135442871,-727.81,0.00019452,2]
[358427000,1745135442880,-500.0,0.00019452,2]
[358427001,1745135442890,-500.0,0.00019452,2]
[358427002,1745135442900,-500.0,0.00019452,2]
[358427003,1745135442909,-500.0,0.00019452,2]
[358427004,1745135442919,-4114.12,0.00019452,2]
[358427005,1745135442929,-2000.0,0.00019452,2]
[358427006,1745135442939,-1382.47,0.000195,2]
[358427007,1745135442949,-151.0,0.00019589,2]
[358427008,1745135442959,-500.0,0.00019589,2]
[358427009,1745135442969,-2500.0,0.00019589,2]
[358427010,1745135442979,-151.0,0.000197,2]
[358427011,1745135442989,-151.0,0.000197,2]
[358427012,1745135443003,-300.0,0.00019717,2]
[358427013,1745135443017,-420.0,0.00019717,2]
[358427014,1745135443031,-151.0,0.00019726,2]
[358427015,1745135443043,-500.0,0.00019726,2]
[358427016,1745135443055,-500.0,0.00019726,2]
[358427017,1745135443065,-500.0,0.00019726,2]
[358427018,1745135443077,-500.0,0.00019726,2]
[358427019,1745135443091,-500.0,0.00019726,2]
[358427020,1745135443102,-500.0,0.00019726,2]
[358427021,1745135443115,-500.0,0.00019726,2]
[358427022,1745135443128,-500.0,0.00019726,2]
[358427023,1745135443140,-500.0,0.00019726,2]
[358427025,1745135443152,-266.0,0.00019726,2]
[358427026,1745135443164,-500.0,0.00019726,2]
[358427027,1745135443176,-500.0,0.00019726,2]
[358427028,1745135443188,-500.0,0.00019726,2]
[358427030,1745135443200,-500.0,0.00019726,2]
[358427031,1745135443211,-500.0,0.00019726,2]
[358427032,1745135443222,-500.0,0.00019726,2]
[358427033,1745135443234,-500.0,0.00019726,2]
[358427034,1745135443244,-500.0,0.00019726,2]
[358427035,1745135443254,-500.0,0.00019726,2]
[358427036,1745135443265,-500.0,0.00019726,2]
[358427037,1745135443276,-500.0,0.00019726,2]
[358427038,1745135443288,-500.0,0.00019726,2]
[358427039,1745135443300,-571.69162773,0.00019726,2]
[358427040,1745135443311,-500.0,0.00019726,2]
[358427041,1745135443324,-500.0,0.00019726,2]
[358427042,1745135443336,-500.0,0.00019726,2]
[358427043,1745135443347,-532.24,0.00019726,2]
[358427044,1745135443360,-500.0,0.00019726,2]
[358427045,1745135443371,-500.0,0.00019726,2]
[358427046,1745135443383,-500.0,0.00019726,2]
[358427047,1745135443395,-500.0,0.00019726,2]
[358427048,1745135443408,-500.0,0.00019726,2]
[358427049,1745135443418,-500.0,0.00019726,2]
[358427050,1745135443429,-500.0,0.00019726,2]
[358427051,1745135443440,-658.12,0.00019726,2]
[358427052,1745135443453,-500.0,0.00019726,2]
[358427053,1745135443467,-500.0,0.00019726,2]
[358427054,1745135443478,-686.01,0.00019726,2]
[358427055,1745135443490,-500.0,0.00019726,2]
[358427056,1745135443502,-500.0,0.00019726,2]
[358427057,1745135443514,-395.2585511,0.00019726,2]
[358427058,1745135443526,-642.46,0.00019726,2]
[358427059,1745135443538,-500.0,0.00019726,2]
[358427060,1745135443549,-500.0,0.00019726,2]
[358427061,1745135443560,-537.01,0.00019726,2]
[358427062,1745135443573,-852.9,0.00019726,2]
[358427063,1745135443584,-500.0,0.00019726,2]
[358427064,1745135443597,-500.0,0.00019726,2]
[358427065,1745135443609,-500.0,0.00019726,2]
[358427066,1745135443620,-565.25260973,0.00019726,2]
[358427067,1745135443632,-500.0,0.00019726,2]
[358427068,1745135443641,-500.0,0.00019726,2]
[358427069,1745135443653,-500.0,0.00019726,2]
[358427070,1745135443663,-1157.68,0.00019726,2]
[358427071,1745135443673,-500.0,0.00019726,2]
[358427072,1745135443683,-750.52,0.00019726,2]
[358427073,1745135443694,-500.0,0.00019726,2]
[358427074,1745135443705,-500.0,0.00019726,2]
[358427075,1745135443716,-500.0,0.00019726,2]
[358427076,1745135443728,-500.0,0.00019726,2]
[358427077,1745135443742,-500.0,0.00019726,2]
[358427078,1745135443754,-500.0,0.00019726,2]
[358427079,1745135443764,-500.0,0.00019726,2]
[358427080,1745135443774,-500.0,0.00019726,2]
[358427081,1745135443784,-500.0,0.00019726,2]
[358427082,1745135443795,-500.0,0.00019726,2]
[358427083,1745135443805,-500.0,0.00019726,2]
[358427084,1745135443816,-500.0,0.00019726,2]
[358427085,1745135443828,-500.0,0.00019726,2]
[358427086,1745135443840,-500.0,0.00019726,2]
[358427088,1745135443852,-500.0,0.00019726,2]
[358427089,1745135443863,-500.0,0.00019726,2]
[358427090,1745135443873,-500.0,0.00019726,2]
[358427091,1745135443883,-500.0,0.00019726,2]
[358427092,1745135443894,-556.38,0.00019726,2]
[358427093,1745135443905,-500.0,0.00019726,2]
[358427094,1745135443916,-396.98857469,0.00019726,2]
[358427095,1745135443927,-879.02,0.00019726,2]
[358427096,1745135443937,-500.0,0.00019726,2]
[358427097,1745135443947,-500.0,0.00019726,2]
[358427098,1745135443958,-500.0,0.00019726,2]
[358427099,1745135443969,-500.0,0.00019726,2]
[358427100,1745135443979,-500.0,0.00019726,2]
[358427101,1745135443990,-678.53,0.00019726,2]
[358427102,1745135444001,-500.0,0.00019726,2]
[358427103,1745135444013,-500.0,0.00019726,2]
[358427104,1745135444024,-500.0,0.00019726,2]
[358427105,1745135444035,-610.83,0.00019726,2]
[358427106,1745135444045,-500.0,0.00019726,2]
[358427107,1745135444057,-526.99,0.00019726,2]
[358427108,1745135444068,-500.0,0.00019726,2]
[358427109,1745135444079,-500.0,0.00019726,2]
[358427110,1745135444090,-500.0,0.00019726,2]
[358427111,1745135444100,-500.0,0.00019726,2]
[358427112,1745135444111,-521.97,0.00019726,2]
[358427113,1745135444121,-500.0,0.00019726,2]
[358427114,1745135444132,-500.0,0.00019726,2]
[358427115,1745135444143,-500.0,0.00019726,2]
[358427116,1745135444153,-500.0,0.00019726,2]
[358427117,1745135444164,-550.92,0.00019726,2]
[358427118,1745135444175,-500.0,0.00019726,2]
[358427119,1745135444185,-500.0,0.00019726,2]
[358427120,1745135444196,-682.92,0.00019726,2]
[358427121,1745135444207,-349.02570675,0.00019726,2]
[358427122,1745135444219,-500.0,0.00019726,2]
[358427123,1745135444231,-1017.41,0.00019726,2]
[358427124,1745135444242,-500.0,0.00019726,2]
[358427125,1745135444253,-656.62,0.00019726,2]
[358427126,1745135444263,-223.0918145,0.00019726,2]
[358427127,1745135444274,-500.0,0.00019726,2]
[358427128,1745135444285,-587.34,0.00019726,2]
[358427129,1745135444297,-1789.8,0.00019726,2]
[358427130,1745135444308,-518.47,0.00019726,2]
[358427131,1745135444318,-500.0,0.00019726,2]
[358427132,1745135444330,-2115.38,0.00019726,2]
[358427133,1745135444340,-500.0,0.00019726,2]
[358427134,1745135444350,-658.82,0.00019726,2]
[358427135,1745135444361,-500.0,0.00019726,2]
[358427136,1745135444372,-500.0,0.00019726,2]
[358427137,1745135444383,-500.0,0.00019726,2]
[358427138,1745135444394,-500.0,0.00019726,2]
[358427139,1745135444405,-685.35,0.00019726,2]
[358427140,1745135444415,-500.0,0.00019726,2]
[358427141,1745135444426,-1631.65,0.00019726,2]
[358427142,1745135444436,-500.0,0.00019726,2]
[358427143,1745135444447,-500.0,0.00019726,2]
[358427144,1745135444459,-572.17,0.00019726,2]
[358427145,1745135444470,-500.0,0.00019726,2]
[358427146,1745135444480,-151.0,0.00019726,2]
[358427147,1745135444491,-151.0,0.00019726,2]
[358427148,1745135444503,-279.389732,0.00019726,2]
[358427149,1745135444514,-500.0,0.00019726,2]
[358427150,1745135444525,-694.63,0.00019726,2]
[358427151,1745135444537,-500.0,0.00019726,2]
[358427152,1745135444547,-500.0,0.00019726,2]
[358427153,1745135444558,-6079.68,0.00019726,2]
[358427154,1745135444569,-500.0,0.00019726,2]
[358427155,1745135444579,-500.0,0.00019726,2]
[358427156,1745135444589,-500.0,0.00019726,2]
[358427157,1745135444599,-2193.23,0.00019726,2]
[358427158,1745135444610,-3762.72,0.00019726,2]
[358427159,1745135444620,-532.97846045,0.00019726,2]
[358427160,1745135444631,-500.0,0.00019726,2]
[358427161,1745135444641,-500.0,0.00019726,2]
[358427162,1745135444651,-850.64,0.00019726,2]
[358427163,1745135444662,-916.52,0.00019726,2]
[358427164,1745135444672,-2673.73,0.00019726,2]
[358427165,1745135444682,-560.12,0.00019726,2]
[358427166,1745135444693,-541.27,0.00019726,2]
[358427167,1745135444703,-500.0,0.00019726,2]
[358427168,1745135444714,-545.07,0.00019726,2]
[358427169,1745135444724,-500.0,0.00019726,2]
[358427170,1745135444734,-11864.41,0.00019726,2]
[358427171,1745135444744,-500.0,0.00019726,2]
[358427172,1745135444754,-727.81,0.00019726,2]
[358427173,1745135444764,-500.0,0.00019726,2]
[358427174,1745135444774,-500.0,0.00019726,2]
[358427175,1745135444784,-500.0,0.00019726,2]
[358427176,1745135444794,-319.02625839,0.00019726,2]
[358427177,1745135444804,-4114.12,0.00019726,2]
[358427178,1745135444813,-3000.0,0.00019726,2]
[358427179,1745135444824,-151.0,0.000198,2]
[358427180,1745135444834,-245.0,0.00019863,2]
[358427181,1745135444844,-185.54383982,0.00019863,2]
[358427182,1745135444854,-2700.7,0.00019863,2]
[358427183,1745135444864,-2700.7,0.00019863,2]
[358427184,1745135444875,-2700.7,0.00019863,2]
[358427185,1745135444885,-2700.7,0.00019863,2]
[358427186,1745135444896,-2700.7,0.00019863,2]
[358427187,1745135444906,-3500.0,0.00019863,2]
[358427188,1745135444917,-151.0,0.000199,2]